{"text_format":"1","workbook":"xlsx","n_sheets":5,"sheets":["Navne","Niveau-skema","Ugeskema uge X","Ikoner","Samarbejdsskema"],"not_rendered":{"charts":0,"images":42,"macros":1,"external_links":0,"defined_names":2,"comments":0,"pivot_tables":0},"unopened":[],"bounds":{"document_bytes":16777216,"sheet_cells":100000,"rows_first":2000,"rows_last":500,"rows_between":2000,"halvings":0,"cell_chars":16384,"cell_head_chars":4096},"cells_cut":0,"cells_raw":0,"read":"whole","date_system":"1900"}

{"sheet":"Navne","index":0,"n_rows":29,"n_cols":4,"rows_kept":29,"cut":false,"hidden":false,"merged":[]}
["Indtast elevernes navne",null,null,"Indtast klasse:"]
["Navn 1",null,null,"8. A"]
["Navn 2"]
["Navn 3"]
["Navn 4",null,null,"1. Skriv klassens navn "]
["Navn 5"]
["Navn 6",null,null,"2. Skriv elevernes navne "]
["Navn 7"]
["Navn 8",null,null,"3. SLET indholdet i resten af navnefelterne"]
["Navn 9"]
["Navn10",null,null,"4. Tryk på knappen: Sorter navne alfabetisk"]
["Navn11"]
["Navn12"]
["Navn13"]
["Navn14"]
["Navn15"]
["Navn16"]
["Navn17",null,null,"Få hele forklaringen i bogen \"Få ro, trivsel og overskud i lyset af folkeskolereformen\"."]
["Navn18",null,null,"Se mere om bogen"]
["Navn19"]
["Navn20",null,null,"Eller kom på kursus rundt i landet"]
["Navn21",null,null,"Læs mere"]
["Navn22"]
["Navn23",null,null,"Få et kursus eller kursusforløb på skolen"]
["Navn24",null,null,"Efteruddannelse af lærere og pædagoger"]
["Navn25"]
["Navn26"]
["Navn27"]
["Navn28"]

{"sheet":"Niveau-skema","index":1,"n_rows":33,"n_cols":10,"rows_kept":33,"cut":false,"hidden":false,"merged":[[3,9,3,11],[2,9,2,14]]}
[]
[]
[{"$f":"\"Klasse\"\n&\"    \"\n&\"    \"\n&Navne!D2","v":"Klasse        8. A"},null,null,null,null,null,null,null,null,"1. Indsæt de nedslagspunkter, du har brug for til at fastholde\n    overblikket og sikre progressionen.\n    Få hele forklaringen på side 157 i bogen \"Få ro, trivsel og \n    overskud i lyset af folkeskolereformen\"."]
[null,null,null,null,null,null,null,null,null,"    Se mere om bogen"]
[]
[{"$f":"IF(ISBLANK(Navne!A2),\"\",Navne!A2)","v":"Navn 1"},null,null,null,null,null,null,null,null,"2. Udvælg med musen det område, du har udfyldt"]
[{"$f":"IF(ISBLANK(Navne!A3),\"\",Navne!A3)","v":"Navn 2"}]
[{"$f":"IF(ISBLANK(Navne!A4),\"\",Navne!A4)","v":"Navn 3"},null,null,null,null,null,null,null,null,"3. Vælg 'filer' og 'udskriv' eller tryk Ctrl P"]
[{"$f":"IF(ISBLANK(Navne!A5),\"\",Navne!A5)","v":"Navn 4"}]
[{"$f":"IF(ISBLANK(Navne!A6),\"\",Navne!A6)","v":"Navn 5"},null,null,null,null,null,null,null,null,"4. Vælg printer"]
[{"$f":"IF(ISBLANK(Navne!A7),\"\",Navne!A7)","v":"Navn 6"}]
[{"$f":"IF(ISBLANK(Navne!A8),\"\",Navne!A8)","v":"Navn 7"},null,null,null,null,null,null,null,null,"5. Vælg 'Udskriv markering'"]
[{"$f":"IF(ISBLANK(Navne!A9),\"\",Navne!A9)","v":"Navn 8"}]
[{"$f":"IF(ISBLANK(Navne!A10),\"\",Navne!A10)","v":"Navn 9"}]
[{"$f":"IF(ISBLANK(Navne!A11),\"\",Navne!A11)","v":"Navn10"}]
[{"$f":"IF(ISBLANK(Navne!A12),\"\",Navne!A12)","v":"Navn11"}]
[{"$f":"IF(ISBLANK(Navne!A13),\"\",Navne!A13)","v":"Navn12"}]
[{"$f":"IF(ISBLANK(Navne!A14),\"\",Navne!A14)","v":"Navn13"}]
[{"$f":"IF(ISBLANK(Navne!A15),\"\",Navne!A15)","v":"Navn14"}]
[{"$f":"IF(ISBLANK(Navne!A16),\"\",Navne!A16)","v":"Navn15"}]
[{"$f":"IF(ISBLANK(Navne!A17),\"\",Navne!A17)","v":"Navn16"}]
[{"$f":"IF(ISBLANK(Navne!A18),\"\",Navne!A18)","v":"Navn17"}]
[{"$f":"IF(ISBLANK(Navne!A19),\"\",Navne!A19)","v":"Navn18"}]
[{"$f":"IF(ISBLANK(Navne!A20),\"\",Navne!A20)","v":"Navn19"},null,null,null,null,null,null,null,null,"6. Vælg  'Udskriv'"]
[{"$f":"IF(ISBLANK(Navne!A21),\"\",Navne!A21)","v":"Navn20"}]
[{"$f":"IF(ISBLANK(Navne!A22),\"\",Navne!A22)","v":"Navn21"}]
[{"$f":"IF(ISBLANK(Navne!A23),\"\",Navne!A23)","v":"Navn22"}]
[{"$f":"IF(ISBLANK(Navne!A24),\"\",Navne!A24)","v":"Navn23"}]
[{"$f":"IF(ISBLANK(Navne!A25),\"\",Navne!A25)","v":"Navn24"}]
[{"$f":"IF(ISBLANK(Navne!A26),\"\",Navne!A26)","v":"Navn25"}]
[{"$f":"IF(ISBLANK(Navne!A27),\"\",Navne!A27)","v":"Navn26"}]
[{"$f":"IF(ISBLANK(Navne!A28),\"\",Navne!A28)","v":"Navn27"}]
[{"$f":"IF(ISBLANK(Navne!A29),\"\",Navne!A29)","v":"Navn28"}]

{"sheet":"Ugeskema uge X","index":2,"n_rows":33,"n_cols":54,"rows_kept":33,"cut":false,"hidden":false,"merged":[[3,29,4,29],[32,24,32,28],[3,24,3,28],[2,24,2,28],[1,24,1,28],[28,24,28,28],[29,24,29,28],[30,24,30,28],[31,24,31,28],[13,24,13,28],[7,24,7,28],[14,24,14,28],[11,24,11,28],[4,24,4,28],[5,24,5,28],[6,24,6,28],[19,24,19,28],[20,24,20,28],[10,24,10,28],[27,24,27,28],[22,24,22,28],[23,24,23,28],[24,24,24,28],[25,24,25,28],[26,24,26,28],[15,24,15,28],[16,24,16,28],[17,24,17,28],[18,24,18,28],[21,24,21,28],[12,24,12,28],[0,8,0,10],[1,8,1,10],[1,21,1,23],[0,12,0,13],[2,12,2,13],[9,24,9,28],[3,21,3,23],[0,2,0,3],[0,5,0,6],[1,5,1,6],[2,5,2,6],[3,5,3,6],[2,1,2,3],[1,1,1,3],[4,5,4,6],[2,8,2,10],[3,8,3,10],[3,2,3,3],[2,19,2,20],[3,19,3,20],[4,19,4,20],[4,53,4,57],[0,43,0,57],[1,43,1,57],[3,43,3,57],[2,43,2,57],[4,48,4,52],[4,43,4,47],[1,30,1,31],[2,30,2,31],[1,14,1,18],[0,19,0,20],[0,21,0,23],[2,21,2,23],[0,24,0,28],[0,40,0,42],[1,40,1,42],[2,40,2,42],[3,40,3,42],[0,33,0,34],[1,33,1,34],[2,33,2,34],[3,33,3,34],[4,12,4,13],[2,14,2,18],[3,14,3,18],[3,12,3,13],[3,0,4,0],[4,8,4,10]]}
["TID","1 t.","2 timer",null,"3 timer","2 x ½ time",null,"½ time","3 x 15 min.",null,null,"45 min.","2 x 5 min.",null,"2 t.","2 t.","1 t.","1 t.","1 t.","2 x ½ time",null,"3 x 15 min.",null,null,null,null,null,null,null,"TID","15 min.","2 timer","15 min.","2 x 3 min.",null,"1 time","1½ time","15 min.","½ time","3 timer","45 min.",null,null,"Max. 10 min. dagligt"]
["LOMME",null,null,null,null,null,null,null,null,null,null,null,null,null,null,null,null,null,null,null,null,null,null,null,null,null,null,null,null,"LOMME"]
[{"$f":"Navne!$D$2\n&\"    \"\n&\"    \"\n&\"Uge\"","v":"8. A        Uge"},null,null,null,null,null,null,null,null,null,null,null,null,null,null,null,null,null,null,null,null,null,null,null,null,null,null,null,null,{"$f":"Navne!$D$2\n&\"    \"\n&\"    \"\n&\"Uge\"","v":"8. A        Uge"},null,null,null,null,null,null,"Dramatisere"]
["46-48",null,"3-4 grp.",null,"Læs","Grammatik",null,"Genrer","Læringscenter",null,null,"Byg højtaler","Snoropgave",null,"Matematikbog side",null,null,null,null,"Matematik",null,"Logbog",null,null,"Kasse",null,null,null,null,"46-48","Topic","Task","Walk & talk","Let's talk about",null,"Birthday","fotosyntese","Videointro","Valgplakat","Valgvideo","Ugens aktuelle",null,null,"Pause til hjernen"]
[null,"5x?","A","F",null,null,null,null,null,null,null,null,"Lyd",null,"38-39","40 - 42",43,44,45,"værksted",null,46,47,48,null,null,null,null,null,null,"12-14","18-19","Fame","Fame","Music","speech","3-5 gruppe","stofkredsløb",null,"1½-2 min.",46,47,48,"Uge 46",null,null,null,null,"Uge 47",null,null,null,null,"Uge 48"]
[{"$f":"IF(ISBLANK(Navne!A2),\"\",Navne!A2)","v":"Navn 1"},null,null,null,null,null,null,null,null,null,null,null,null,null,null,null,null,null,null,null,null,null,null,null,null,null,null,null,null,{"$f":"IF(A6>0,A6,\"\")","v":"Navn 1"}]
[{"$f":"IF(ISBLANK(Navne!A3),\"\",Navne!A3)","v":"Navn 2"},null,null,null,null,null,null,null,null,null,null,null,null,null,null,null,null,null,null,null,null,null,null,null,null,null,null,null,null,{"$f":"IF(A7>0,A7,\"\")","v":"Navn 2"}]
[{"$f":"IF(ISBLANK(Navne!A4),\"\",Navne!A4)","v":"Navn 3"},null,null,null,null,null,null,null,null,null,null,null,null,null,null,null,null,null,null,null,null,null,null,null,null,null,null,null,null,"Navn 3"]
[{"$f":"IF(ISBLANK(Navne!A5),\"\",Navne!A5)","v":"Navn 4"},null,null,null,null,null,null,null,null,null,null,null,null,null,null,null,null,null,null,null,null,null,null,null,null,null,null,null,null,"Navn 4"]
[{"$f":"IF(ISBLANK(Navne!A6),\"\",Navne!A6)","v":"Navn 5"},null,null,null,null,null,null,null,null,null,null,null,null,null,null,null,null,null,null,null,null,null,null,null,null,null,null,null,null,"Navn 5"]
[{"$f":"IF(ISBLANK(Navne!A7),\"\",Navne!A7)","v":"Navn 6"},null,null,null,null,null,null,null,null,null,null,null,null,null,null,null,null,null,null,null,null,null,null,null,null,null,null,null,null,"Navn 6"]
[{"$f":"IF(ISBLANK(Navne!A8),\"\",Navne!A8)","v":"Navn 7"},null,null,null,null,null,null,null,null,null,null,null,null,null,null,null,null,null,null,null,null,null,null,null,null,null,null,null,null,"Navn 7"]
[{"$f":"IF(ISBLANK(Navne!A9),\"\",Navne!A9)","v":"Navn 8"},null,null,null,null,null,null,null,null,null,null,null,null,null,null,null,null,null,null,null,null,null,null,null,null,null,null,null,null,"Navn 8"]
[{"$f":"IF(ISBLANK(Navne!A10),\"\",Navne!A10)","v":"Navn 9"},null,null,null,null,null,null,null,null,null,null,null,null,null,null,null,null,null,null,null,null,null,null,null,null,null,null,null,null,"Navn 9"]
[{"$f":"IF(ISBLANK(Navne!A11),\"\",Navne!A11)","v":"Navn10"},null,null,null,null,null,null,null,null,null,null,null,null,null,null,null,null,null,null,null,null,null,null,null,null,null,null,null,null,"Navn10"]
[{"$f":"IF(ISBLANK(Navne!A12),\"\",Navne!A12)","v":"Navn11"},null,null,null,null,null,null,null,null,null,null,null,null,null,null,null,null,null,null,null,null,null,null,null,null,null,null,null,null,"Navn11"]
[{"$f":"IF(ISBLANK(Navne!A13),\"\",Navne!A13)","v":"Navn12"},null,null,null,null,null,null,null,null,null,null,null,null,null,null,null,null,null,null,null,null,null,null,null,null,null,null,null,null,"Navn12"]
[{"$f":"IF(ISBLANK(Navne!A14),\"\",Navne!A14)","v":"Navn13"},null,null,null,null,null,null,null,null,null,null,null,null,null,null,null,null,null,null,null,null,null,null,null,null,null,null,null,null,"Navn13"]
[{"$f":"IF(ISBLANK(Navne!A15),\"\",Navne!A15)","v":"Navn14"},null,null,null,null,null,null,null,null,null,null,null,null,null,null,null,null,null,null,null,null,null,null,null,null,null,null,null,null,"Navn14"]
[{"$f":"IF(ISBLANK(Navne!A16),\"\",Navne!A16)","v":"Navn15"},null,null,null,null,null,null,null,null,null,null,null,null,null,null,null,null,null,null,null,null,null,null,null,null,null,null,null,null,"Navn15"]
[{"$f":"IF(ISBLANK(Navne!A17),\"\",Navne!A17)","v":"Navn16"},null,null,null,null,null,null,null,null,null,null,null,null,null,null,null,null,null,null,null,null,null,null,null,null,null,null,null,null,"Navn16"]
[{"$f":"IF(ISBLANK(Navne!A18),\"\",Navne!A18)","v":"Navn17"},null,null,null,null,null,null,null,null,null,null,null,null,null,null,null,null,null,null,null,null,null,null,null,null,null,null,null,null,"Navn17"]
[{"$f":"IF(ISBLANK(Navne!A19),\"\",Navne!A19)","v":"Navn18"},null,null,null,null,null,null,null,null,null,null,null,null,null,null,null,null,null,null,null,null,null,null,null,null,null,null,null,null,"Navn18"]
[{"$f":"IF(ISBLANK(Navne!A20),\"\",Navne!A20)","v":"Navn19"},null,null,null,null,null,null,null,null,null,null,null,null,null,null,null,null,null,null,null,null,null,null,null,null,null,null,null,null,"Navn19"]
[{"$f":"IF(ISBLANK(Navne!A21),\"\",Navne!A21)","v":"Navn20"},null,null,null,null,null,null,null,null,null,null,null,null,null,null,null,null,null,null,null,null,null,null,null,null,null,null,null,null,"Navn20"]
[{"$f":"IF(ISBLANK(Navne!A22),\"\",Navne!A22)","v":"Navn21"},null,null,null,null,null,null,null,null,null,null,null,null,null,null,null,null,null,null,null,null,null,null,null,null,null,null,null,null,"Navn21"]
[{"$f":"IF(ISBLANK(Navne!A23),\"\",Navne!A23)","v":"Navn22"},null,null,null,null,null,null,null,null,null,null,null,null,null,null,null,null,null,null,null,null,null,null,null,null,null,null,null,null,"Navn22"]
[{"$f":"IF(ISBLANK(Navne!A24),\"\",Navne!A24)","v":"Navn23"},null,null,null,null,null,null,null,null,null,null,null,null,null,null,null,null,null,null,null,null,null,null,null,null,null,null,null,null,"Navn23"]
[{"$f":"IF(ISBLANK(Navne!A25),\"\",Navne!A25)","v":"Navn24"},null,null,null,null,null,null,null,null,null,null,null,null,null,null,null,null,null,null,null,null,null,null,null,null,null,null,null,null,"Navn24"]
[{"$f":"IF(ISBLANK(Navne!A26),\"\",Navne!A26)","v":"Navn25"},null,null,null,null,null,null,null,null,null,null,null,null,null,null,null,null,null,null,null,null,null,null,null,null,null,null,null,null,"Navn25"]
[{"$f":"IF(ISBLANK(Navne!A27),\"\",Navne!A27)","v":"Navn26"},null,null,null,null,null,null,null,null,null,null,null,null,null,null,null,null,null,null,null,null,null,null,null,null,null,null,null,null,"Navn26"]
[{"$f":"IF(ISBLANK(Navne!A28),\"\",Navne!A28)","v":"Navn27"},null,null,null,null,null,null,null,null,null,null,null,null,null,null,null,null,null,null,null,null,null,null,null,null,null,null,null,null,"Navn27"]
[{"$f":"IF(ISBLANK(Navne!A29),\"\",Navne!A29)","v":"Navn28"},null,null,null,null,null,null,null,null,null,null,null,null,null,null,null,null,null,null,null,null,null,null,null,null,null,null,null,null,"Navn28"]

{"sheet":"Ikoner","index":3,"n_rows":6,"n_cols":2,"rows_kept":6,"cut":false,"hidden":false,"merged":[]}
[]
[null,"Find flere ikoner på "]
[null,"UgeskemaRevolutionen.dk/ikoner"]
[]
[]
[null,"Læg luppen over bogen … "]

{"sheet":"Samarbejdsskema","index":4,"n_rows":29,"n_cols":32,"rows_kept":29,"cut":false,"hidden":false,"merged":[[2,31,2,33],[0,31,1,37]]}
[{"$f":"\"Samarbejds-\nskema\"&CHAR(10)\n&\nNavne!D2","v":"Samarbejds-\nskema\n8. A"},{"$f":"$A2","v":"Navn 1"},{"$f":"$A3","v":"Navn 2"},{"$f":"$A4","v":"Navn 3"},{"$f":"$A5","v":"Navn 4"},{"$f":"$A6","v":"Navn 5"},{"$f":"$A7","v":"Navn 6"},{"$f":"$A8","v":"Navn 7"},{"$f":"$A9","v":"Navn 8"},{"$f":"$A10","v":"Navn 9"},{"$f":"$A11","v":"Navn10"},{"$f":"$A12","v":"Navn11"},{"$f":"$A13","v":"Navn12"},{"$f":"$A14","v":"Navn13"},{"$f":"$A15","v":"Navn14"},{"$f":"$A16","v":"Navn15"},{"$f":"$A17","v":"Navn16"},{"$f":"$A18","v":"Navn17"},{"$f":"$A19","v":"Navn18"},{"$f":"$A20","v":"Navn19"},{"$f":"$A21","v":"Navn20"},{"$f":"$A22","v":"Navn21"},{"$f":"$A23","v":"Navn22"},{"$f":"$A24","v":"Navn23"},{"$f":"$A25","v":"Navn24"},{"$f":"$A26","v":"Navn25"},{"$f":"$A27","v":"Navn26"},{"$f":"$A28","v":"Navn27"},{"$f":"$A29","v":"Navn28"},null,null,"1. Få hele forklaringen på side 130 i bogen\n    \"Få ro, trivsel og overskud i lyset af folkeskolereformen\"."]
[{"$f":"IF(ISBLANK(Navne!A2),\"\",Navne!A2)","v":"Navn 1"}]
[{"$f":"IF(ISBLANK(Navne!A3),\"\",Navne!A3)","v":"Navn 2"},null,null,null,null,null,null,null,null,null,null,null,null,null,null,null,null,null,null,null,null,null,null,null,null,null,null,null,null,null,null,"    Se mere om bogen"]
[{"$f":"IF(ISBLANK(Navne!A4),\"\",Navne!A4)","v":"Navn 3"}]
[{"$f":"IF(ISBLANK(Navne!A5),\"\",Navne!A5)","v":"Navn 4"},null,null,null,null,null,null,null,null,null,null,null,null,null,null,null,null,null,null,null,null,null,null,null,null,null,null,null,null,null,null,"2. Udvælg med musen det område, du vil printe"]
[{"$f":"IF(ISBLANK(Navne!A6),\"\",Navne!A6)","v":"Navn 5"}]
[{"$f":"IF(ISBLANK(Navne!A7),\"\",Navne!A7)","v":"Navn 6"},null,null,null,null,null,null,null,null,null,null,null,null,null,null,null,null,null,null,null,null,null,null,null,null,null,null,null,null,null,null,"3.  Vælg 'Filer' og 'Udskriv' eller Ctrl P"]
[{"$f":"IF(ISBLANK(Navne!A8),\"\",Navne!A8)","v":"Navn 7"}]
[{"$f":"IF(ISBLANK(Navne!A9),\"\",Navne!A9)","v":"Navn 8"},null,null,null,null,null,null,null,null,null,null,null,null,null,null,null,null,null,null,null,null,null,null,null,null,null,null,null,null,null,null,"4. Vælg printer"]
[{"$f":"IF(ISBLANK(Navne!A10),\"\",Navne!A10)","v":"Navn 9"}]
[{"$f":"IF(ISBLANK(Navne!A11),\"\",Navne!A11)","v":"Navn10"},null,null,null,null,null,null,null,null,null,null,null,null,null,null,null,null,null,null,null,null,null,null,null,null,null,null,null,null,null,null,"5. Vælg 'Udskriv markering'"]
[{"$f":"IF(ISBLANK(Navne!A12),\"\",Navne!A12)","v":"Navn11"}]
[{"$f":"IF(ISBLANK(Navne!A13),\"\",Navne!A13)","v":"Navn12"}]
[{"$f":"IF(ISBLANK(Navne!A14),\"\",Navne!A14)","v":"Navn13"}]
[{"$f":"IF(ISBLANK(Navne!A15),\"\",Navne!A15)","v":"Navn14"}]
[{"$f":"IF(ISBLANK(Navne!A16),\"\",Navne!A16)","v":"Navn15"}]
[{"$f":"IF(ISBLANK(Navne!A17),\"\",Navne!A17)","v":"Navn16"}]
[{"$f":"IF(ISBLANK(Navne!A18),\"\",Navne!A18)","v":"Navn17"}]
[{"$f":"IF(ISBLANK(Navne!A19),\"\",Navne!A19)","v":"Navn18"}]
[{"$f":"IF(ISBLANK(Navne!A20),\"\",Navne!A20)","v":"Navn19"}]
[{"$f":"IF(ISBLANK(Navne!A21),\"\",Navne!A21)","v":"Navn20"}]
[{"$f":"IF(ISBLANK(Navne!A22),\"\",Navne!A22)","v":"Navn21"}]
[{"$f":"IF(ISBLANK(Navne!A23),\"\",Navne!A23)","v":"Navn22"}]
[{"$f":"IF(ISBLANK(Navne!A24),\"\",Navne!A24)","v":"Navn23"}]
[{"$f":"IF(ISBLANK(Navne!A25),\"\",Navne!A25)","v":"Navn24"},null,null,null,null,null,null,null,null,null,null,null,null,null,null,null,null,null,null,null,null,null,null,null,null,null,null,null,null,null,null,"6. Vælg  'Udskriv'"]
[{"$f":"IF(ISBLANK(Navne!A26),\"\",Navne!A26)","v":"Navn25"}]
[{"$f":"IF(ISBLANK(Navne!A27),\"\",Navne!A27)","v":"Navn26"}]
[{"$f":"IF(ISBLANK(Navne!A28),\"\",Navne!A28)","v":"Navn27"}]
[{"$f":"IF(ISBLANK(Navne!A29),\"\",Navne!A29)","v":"Navn28"}]